fUSD/lending_fUSD_20240915
["ID","MTS","AMOUNT","RATE_DAILY","PERIOD"]
[338208677,1726386646438,-1177.2,0.00013057,2]
[338208678,1726386646447,-731.09,0.00013057,2]
[338208679,1726386646457,-1761.9,0.00013057,2]
[338208680,1726386646466,-1713.17,0.00013057,2]
[338208681,1726386646476,-500.0,0.00013057,2]
[338208682,1726386646486,-1325.82,0.00013057,2]
[338208683,1726386646497,-1492.55,0.00013057,2]
[338208684,1726386646507,-194.36448088,0.00013057,2]
[338208685,1726386646517,-500.0,0.00013057,2]
[338208686,1726386646526,-653.79,0.00013057,2]
[338208687,1726386646536,-906.63,0.00013057,2]
[338208688,1726386646548,-1834.83,0.00013057,2]
[338208689,1726386646558,-500.0,0.00013057,2]
[338208690,1726386646569,-37692.85,0.00013057,2]
[338208691,1726386646582,-783.83,0.00013057,2]
[338208692,1726386646592,-1233.5,0.00013057,2]
[338208693,1726386646601,-500.0,0.00013057,2]
[338208694,1726386646611,-1026.37,0.00013057,2]
[338208695,1726386646620,-2744.15,0.00013057,2]
[338208696,1726386646629,-2296.47,0.00013057,2]
[338208697,1726386646639,-500.0,0.00013057,2]
[338208698,1726386646650,-793.21,0.00013057,2]
[338208699,1726386646659,-528.17,0.00013057,2]
[338208700,1726386646669,-731.12,0.00013057,2]
[338208701,1726386646679,-3505.49,0.00013057,2]
[338208702,1726386646688,-500.0,0.00013057,2]
[338208703,1726386646700,-1451.47,0.00013057,2]
[338208704,1726386646710,-1113.36,0.00013057,2]
[338208705,1726386646720,-500.0,0.00013057,2]
[338208706,1726386646729,-1469.02,0.00013057,2]
[338208707,1726386646739,-5674.86,0.00013057,2]
[338208708,1726386646750,-1895.66,0.00013057,2]
[338208709,1726386646760,-1123.21,0.00013057,2]
[338208710,1726386646769,-500.0,0.00013057,2]
[338208711,1726386646779,-6306.86,0.00013057,2]
[338208712,1726386646789,-500.0,0.00013057,2]
[338208713,1726386646799,-941.47,0.00013057,2]
[338208714,1726386646808,-687.97,0.00013057,2]
[338208715,1726386646819,-1613.22,0.00013057,2]
[338208716,1726386646828,-1288.28,0.00013057,2]
[338208717,1726386646838,-500.0,0.00013057,2]
[338208718,1726386646847,-1324.08,0.00013057,2]
[338208719,1726386646857,-500.0,0.00013057,2]
[338208720,1726386646867,-755.08,0.00013057,2]
[338208721,1726386646876,-2206.36,0.00013057,2]
[338208722,1726386646886,-5253.79,0.00013057,2]
[338208723,1726386646895,-633.9,0.00013057,2]
[338208724,1726386646905,-500.0,0.00013057,2]
[338208725,1726386646915,-500.0,0.00013057,2]
[338208726,1726386646924,-500.0,0.00013057,2]
[338208727,1726386646934,-215.49239627,0.00013057,2]
[338208728,1726386646943,-1836.18,0.00013057,2]
[338208729,1726386646953,-500.0,0.00013057,2]
[338208730,1726386646962,-500.0,0.00013057,2]
[338208731,1726386646972,-500.0,0.00013057,2]
[338208732,1726386646982,-307.43344575,0.00013057,2]
[338208733,1726386646991,-500.0,0.00013057,2]
[338208734,1726386647001,-1195.24,0.00013057,2]
[338208735,1726386647011,-2066.23,0.00013057,2]
[338208736,1726386647021,-5265.45,0.00013057,2]
[338208737,1726386647030,-500.0,0.00013057,2]
[338208738,1726386647040,-1198.34,0.00013057,2]
[338208739,1726386647050,-500.0,0.00013057,2]
[338208740,1726386647060,-1494.33,0.00013057,2]
[338208741,1726386647070,-1070.63,0.00013057,2]
[338208742,1726386647081,-625.13,0.00013057,2]
[338208743,1726386647091,-500.0,0.00013057,2]
[338208744,1726386647101,-577.47,0.00013057,2]
[338208745,1726386647111,-500.0,0.00013057,2]
[338208746,1726386647121,-1259.12,0.00013057,2]
[338208747,1726386647132,-898.73,0.00013057,2]
[338208748,1726386647142,-500.0,0.00013057,2]
[338208749,1726386647152,-500.0,0.00013057,2]
[338208750,1726386647162,-2158.21,0.00013057,2]
[338208751,1726386647173,-1377.51,0.00013057,2]
[338208752,1726386647183,-2187.18,0.00013057,2]
[338208753,1726386647193,-500.0,0.00013057,2]
[338208754,1726386647202,-1790.42,0.00013057,2]
[338208755,1726386647213,-500.0,0.00013057,2]
[338208756,1726386647223,-3866.89,0.00013057,2]
[338208757,1726386647233,-500.0,0.00013057,2]
[338208758,1726386647243,-1154.78,0.00013057,2]
[338208759,1726386647253,-509.68,0.00013057,2]
[338208760,1726386647263,-809.72,0.00013057,2]
[338208761,1726386647273,-1899.94,0.00013057,2]
[338208762,1726386647283,-500.0,0.00013057,2]
[338208763,1726386647293,-1753.97,0.00013057,2]
[338208764,1726386647303,-533.25,0.00013057,2]
[338208765,1726386647313,-500.0,0.00013057,2]
[338208766,1726386647322,-747.56,0.00013057,2]
[338208767,1726386647332,-1324.16,0.00013057,2]
[338208768,1726386647342,-500.0,0.00013057,2]
[338208769,1726386647352,-2065.81,0.00013057,2]
[338208770,1726386647362,-838.03,0.00013057,2]
[338208771,1726386647372,-3817.83,0.00013057,2]
[338208772,1726386647381,-1091.04,0.00013057,2]
[338208773,1726386647391,-7177.3,0.00013057,2]
[338208774,1726386647401,-500.0,0.00013057,2]
[338208775,1726386647411,-500.0,0.00013057,2]
[338208776,1726386647421,-616.51,0.00013057,2]
[338208777,1726386647431,-2748.05,0.00013057,2]
[338208778,1726386647441,-1033.18,0.00013057,2]
[338208779,1726386647451,-606.95,0.00013057,2]
[338208780,1726386647460,-500.0,0.00013057,2]
[338208781,1726386647470,-500.0,0.00013057,2]
[338208782,1726386647480,-3584.94,0.00013057,2]
[338208783,1726386647490,-3719.36,0.00013057,2]
[338208784,1726386647500,-718.46,0.00013057,2]
[338208785,1726386647510,-500.0,0.00013057,2]
[338208786,1726386647520,-500.0,0.00013057,2]
[338208787,1726386647530,-500.0,0.00013057,2]
[338208788,1726386647539,-500.0,0.00013057,2]
[338208789,1726386647549,-500.0,0.00013057,2]
[338208790,1726386647558,-6552.93,0.00013057,2]
[338208791,1726386647570,-500.0,0.00013057,2]
[338208792,1726386647580,-2287.8,0.00013057,2]
[338208793,1726386647591,-1885.49,0.00013057,2]
[338208794,1726386647600,-500.0,0.00013057,2]
[338208795,1726386647610,-2590.47,0.00013057,2]
[338208796,1726386647619,-500.0,0.00013057,2]
[338208797,1726386647629,-2059.56,0.00013057,2]
[338208798,1726386647638,-2663.67,0.00013057,2]
[338208799,1726386647648,-831.17,0.00013057,2]
[338208800,1726386647657,-775.53,0.00013057,2]
[338208801,1726386647667,-11999.75,0.00013057,2]
[338208802,1726386647676,-2667.45,0.00013057,2]
[338208803,1726386647685,-500.0,0.00013057,2]
[338208804,1726386647694,-285.10840016,0.00013057,2]
[338208805,1726386647704,-8752.31,0.00013057,2]
[338208806,1726386647714,-1008.39,0.00013057,2]
[338208807,1726386647724,-3162.56,0.00013057,2]
[338208808,1726386647733,-500.0,0.00013057,2]
[338208809,1726386647743,-500.0,0.00013057,2]
[338208810,1726386647752,-1792.48,0.00013057,2]
[338208811,1726386647762,-8994.6,0.00013057,2]
[338208812,1726386647772,-38442.91,0.00013057,2]
[338208813,1726386647781,-500.0,0.00013057,2]
[338208814,1726386647791,-538.29,0.00013057,2]
[338208815,1726386647800,-500.0,0.00013057,2]
[338208816,1726386647810,-500.0,0.00013057,2]
[338208817,1726386647820,-3192.74,0.00013057,2]
[338208818,1726386647829,-961.96,0.00013057,2]
[338208819,1726386647839,-2222.79,0.00013057,2]
[338208820,1726386647849,-500.0,0.00013057,2]
[338208821,1726386647858,-500.0,0.00013057,2]
[338208822,1726386647868,-1669.12,0.00013057,2]
[338208823,1726386647877,-500.0,0.00013057,2]
[338208824,1726386647887,-761.1,0.00013057,2]
[338208825,1726386647896,-2565.54,0.00013057,2]
[338208826,1726386647906,-1021.7,0.00013057,2]
[338208827,1726386647916,-2538.68,0.00013057,2]
[338208828,1726386647925,-3498.66,0.00013057,2]
[338208829,1726386647935,-4772.15,0.00013057,2]
[338208830,1726386647945,-500.0,0.00013057,2]
[338208831,1726386647955,-1063.36,0.00013057,2]
[338208832,1726386647964,-636.46,0.00013057,2]
[338208833,1726386647975,-1130.26,0.00013057,2]
[338208834,1726386647984,-1957.62,0.00013057,2]
[338208835,1726386647994,-500.0,0.00013058,2]
[338208836,1726386648004,-1036.95,0.00013058,2]
[338208837,1726386648013,-969.32,0.00013058,2]
[338208838,1726386648023,-576.29,0.00013058,2]
[338208839,1726386648033,-500.0,0.00013058,2]
[338208840,1726386648043,-500.0,0.00013058,2]
[338208841,1726386648052,-500.0,0.00013058,2]
[338208842,1726386648062,-500.0,0.00013058,2]
[338208843,1726386648071,-500.0,0.00013058,2]
[338208844,1726386648081,-500.0,0.00013058,2]
[338208845,1726386648091,-500.0,0.00013058,2]
[338208846,1726386648101,-500.66,0.00013058,2]
[338208847,1726386648110,-500.0,0.00013058,2]
[338208848,1726386648120,-500.0,0.00013058,2]
[338208849,1726386648129,-500.0,0.00013058,2]
[338208850,1726386648139,-626.92,0.00013058,2]
[338208851,1726386648148,-929.36,0.00013058,2]
[338208852,1726386648158,-633.96,0.00013058,2]
[338208853,1726386648167,-500.0,0.00013058,2]
[338208854,1726386648176,-503.57,0.00013058,2]
[338208855,1726386648192,-829.2,0.00013058,2]
[338208856,1726386648202,-500.0,0.00013058,2]
[338208857,1726386648211,-500.0,0.00013058,2]
[338208858,1726386648221,-891.82,0.00013058,2]
[338208859,1726386648231,-919.28,0.00013058,2]
[338208860,1726386648240,-520.65,0.00013058,2]
[338208861,1726386648251,-593.14744009,0.00013058,2]
[338208862,1726386648261,-1127.16,0.00013058,2]
[338208863,1726386648270,-500.0,0.00013058,2]
[338208864,1726386648280,-811.79,0.00013058,2]
[338208865,1726386648290,-1430.93,0.00013058,2]
[338208866,1726386648300,-500.0,0.00013058,2]
[338208867,1726386648311,-518.92,0.00013058,2]
[338208868,1726386648320,-500.0,0.00013058,2]
[338208869,1726386648330,-500.0,0.00013058,2]
[338208870,1726386648340,-619.57,0.00013058,2]
[338208871,1726386648350,-500.0,0.00013058,2]
[338208872,1726386648360,-1437.76,0.00013058,2]
[338208873,1726386648370,-500.0,0.00013058,2]
[338208874,1726386648380,-500.0,0.00013058,2]
[338208875,1726386648390,-500.0,0.00013058,2]
[338208876,1726386648400,-929.12,0.00013058,2]
[338208877,1726386648409,-500.0,0.00013058,2]
[338208878,1726386648419,-3127.64,0.00013058,2]
[338208879,1726386648431,-500.0,0.00013058,2]
[338208880,1726386648440,-1380.36,0.00013058,2]
[338208881,1726386648450,-500.0,0.00013058,2]
[338208882,1726386648460,-500.0,0.00013058,2]
[338208883,1726386648470,-500.0,0.00013058,2]
[338208884,1726386648480,-500.0,0.00013058,2]
[338208885,1726386648490,-500.0,0.00013058,2]
[338208886,1726386648499,-2704.61,0.00013058,2]
[338208887,1726386648509,-963.73,0.00013058,2]
[338208888,1726386648519,-500.0,0.00013058,2]
[338208889,1726386648528,-500.0,0.00013058,2]
[338208890,1726386648538,-500.0,0.00013058,2]
[338208891,1726386648548,-500.0,0.00013058,2]
[338208892,1726386648557,-1179.51,0.00013058,2]
[338208893,1726386648568,-500.0,0.00013058,2]
[338208894,1726386648580,-500.0,0.00013058,2]
[338208895,1726386648590,-1009.7,0.00013058,2]
[338208896,1726386648600,-590.02,0.00013058,2]
[338208897,1726386648610,-834.68,0.00013058,2]
[338208898,1726386648623,-667.68,0.00013058,2]
[338208899,1726386648633,-2005.99,0.00013058,2]
[338208900,1726386648643,-908.12,0.00013058,2]
[338208901,1726386648654,-1923.49,0.00013058,2]
[338208902,1726386648664,-2050.36,0.00013058,2]
[338208903,1726386648674,-1528.57,0.00013058,2]
[338208904,1726386648689,-500.0,0.00013058,2]
[338208905,1726386648698,-989.82,0.00013058,2]
[338208906,1726386648708,-1331.9,0.00013058,2]
[338208907,1726386648718,-1908.56,0.00013058,2]
[338208908,1726386648728,-1368.73,0.00013058,2]
[338208909,1726386648738,-500.0,0.00013058,2]
[338208910,1726386648748,-648.5,0.00013058,2]
[338208911,1726386648758,-500.0,0.00013058,2]
[338208912,1726386648768,-548.36,0.00013058,2]
[338208913,1726386648778,-500.0,0.00013058,2]
[338208914,1726386648787,-500.0,0.00013058,2]
[338208915,1726386648797,-1050.22,0.00013058,2]
[338208916,1726386648808,-1215.28,0.00013058,2]
[338208917,1726386648818,-1018.5,0.00013058,2]
[338208918,1726386648827,-500.0,0.00013058,2]
[338208919,1726386648837,-2164.46,0.00013058,2]
[338208920,1726386648847,-500.0,0.00013058,2]
[338208921,1726386648857,-500.0,0.00013058,2]
[338208922,1726386648868,-560.35,0.00013058,2]
[338208923,1726386648879,-500.0,0.00013058,2]
[338208924,1726386649079,-1007.64,0.00013058,2]
[338208925,1726386649113,-500.0,0.00013058,2]
[338208926,1726386649122,-1752.2,0.00013058,2]
[338208927,1726386649132,-500.0,0.00013058,2]
[338208928,1726386649141,-500.0,0.00013058,2]
[338208929,1726386649150,-500.0,0.00013058,2]
[338208930,1726386649160,-500.0,0.00013058,2]
[338208931,1726386649170,-1728.97,0.00013058,2]
[338208932,1726386649180,-500.0,0.00013058,2]
[338208933,1726386649190,-500.0,0.00013058,2]
[338208934,1726386649200,-500.0,0.00013058,2]
[338208935,1726386649210,-1023.85,0.00013058,2]
[338208936,1726386649219,-500.0,0.00013058,2]
[338208937,1726386649229,-2030.25,0.00013058,2]
[338208938,1726386649239,-500.0,0.00013058,2]
[338208939,1726386649249,-500.38,0.00013058,2]
[338208940,1726386649258,-575.23,0.00013058,2]
[338208941,1726386649268,-1137.78,0.00013058,2]
[338208942,1726386649278,-2008.53,0.00013058,2]
[338208943,1726386649287,-500.0,0.00013058,2]
[338208944,1726386649296,-500.0,0.00013058,2]
[338208945,1726386649307,-1054.24,0.00013058,2]
[338208946,1726386649319,-2180.97,0.00013058,2]
[338208947,1726386649329,-500.0,0.00013058,2]
[338208948,1726386649339,-1000.0,0.00013058,2]
[338208949,1726386649349,-500.0,0.00013058,2]
[338208950,1726386649359,-500.0,0.00013058,2]
[338208951,1726386649368,-1756.97,0.00013058,2]
[338208952,1726386649378,-1322.99,0.00013058,2]
[338208953,1726386649387,-1771.35,0.00013058,2]
[338208954,1726386649397,-1097.13,0.00013058,2]
[338208955,1726386649407,-1068.8,0.00013058,2]
[338208956,1726386649417,-1079.61,0.00013058,2]
[338208957,1726386649427,-1921.61,0.00013058,2]
[338208958,1726386649438,-1745.7,0.00013058,2]
[338208959,1726386649449,-500.0,0.00013058,2]
[338208960,1726386649459,-1048.03,0.00013058,2]
[338208961,1726386649469,-500.0,0.00013058,2]
[338208962,1726386649479,-500.0,0.00013058,2]
[338208963,1726386649488,-809.48,0.00013058,2]
[338208964,1726386649498,-642.2,0.00013058,2]
[338208965,1726386649508,-1530.88,0.00013058,2]
[338208966,1726386649517,-1722.16,0.00013058,2]
[338208967,1726386649528,-500.0,0.00013058,2]
[338208968,1726386649538,-587.30507649,0.00013058,2]
[338208969,1726386649547,-707.09,0.00013058,2]
[338208970,1726386649557,-1141.18,0.00013058,2]
[338208971,1726386649567,-500.0,0.00013058,2]
[338208972,1726386649579,-500.0,0.00013058,2]
[338208973,1726386649588,-1303.63,0.00013058,2]
[338208974,1726386649598,-500.0,0.00013058,2]
[338208975,1726386649607,-1272.51,0.00013058,2]
[338208976,1726386649617,-1822.8,0.00013058,2]
[338208977,1726386649627,-500.0,0.00013058,2]
[338208978,1726386649636,-500.0,0.00013058,2]
[338208979,1726386649646,-2551.42,0.00013058,2]
[338208980,1726386649656,-500.0,0.00013058,2]
[338208981,1726386649666,-500.0,0.00013058,2]
[338208982,1726386649675,-1331.23,0.00013058,2]
[338208983,1726386649686,-2407.69,0.00013058,2]
[338208984,1726386649696,-500.0,0.00013058,2]
[338208985,1726386649705,-585.16,0.00013058,2]
[338208986,1726386649715,-819.66,0.00013058,2]
[338208987,1726386649724,-923.56,0.00013058,2]
[338208988,1726386649734,-500.0,0.00013058,2]
[338208989,1726386649744,-3739.75,0.00013058,2]
[338208990,1726386649754,-645.21,0.00013058,2]
[338208991,1726386649763,-500.0,0.00013058,2]
[338208992,1726386649773,-500.0,0.00013058,2]
[338208993,1726386649782,-500.0,0.00013058,2]
[338208994,1726386649792,-500.0,0.00013058,2]
[338208995,1726386649801,-1112.04,0.00013058,2]
[338208996,1726386649811,-593.76,0.00013058,2]
[338208997,1726386649820,-500.0,0.00013058,2]
[338208998,1726386649830,-1679.43,0.00013058,2]
[338208999,1726386649839,-1331.71,0.00013058,2]
[338209000,1726386649849,-1682.35,0.00013058,2]
[338209001,1726386649858,-1081.85,0.00013058,2]
[338209002,1726386649868,-500.0,0.00013058,2]
[338209003,1726386649877,-1202.52,0.00013058,2]
[338209004,1726386649887,-500.0,0.00013058,2]
[338209005,1726386649897,-896.4,0.00013058,2]
[338209006,1726386649906,-500.0,0.00013058,2]
[338209007,1726386649916,-820.29,0.00013058,2]
[338209008,1726386649925,-500.0,0.00013058,2]
[338209009,1726386649934,-500.0,0.00013058,2]
[338209010,1726386649943,-1736.63,0.00013058,2]
[338209011,1726386649953,-500.0,0.00013058,2]
[338209012,1726386649963,-1646.47,0.00013058,2]
[338209013,1726386649973,-500.0,0.00013058,2]
[338209014,1726386649984,-1277.04,0.00013058,2]
[338209015,1726386649996,-500.0,0.00013058,2]
[338209016,1726386650006,-1552.97,0.00013058,2]
[338209017,1726386650016,-1253.7,0.00013058,2]
[338209018,1726386650026,-500.0,0.00013058,2]
[338209019,1726386650036,-875.0,0.00013058,2]
[338209020,1726386650046,-1193.43,0.00013058,2]
[338209021,1726386650057,-500.0,0.00013058,2]
[338209022,1726386650067,-655.93,0.00013058,2]
[338209023,1726386650076,-665.56,0.00013058,2]
[338209024,1726386650085,-740.38,0.00013058,2]
[338209025,1726386650094,-500.0,0.00013058,2]
[338209026,1726386650104,-824.47,0.00013058,2]
[338209027,1726386650114,-702.34,0.00013058,2]
[338209028,1726386650123,-500.0,0.00013058,2]
[338209029,1726386650132,-591.05,0.00013058,2]
[338209030,1726386650142,-1735.51,0.00013058,2]
[338209031,1726386650152,-500.0,0.00013058,2]
[338209032,1726386650162,-3203.15,0.00013058,2]
[338209033,1726386650172,-1729.91,0.00013058,2]
[338209034,1726386650181,-573.4,0.00013058,2]
[338209035,1726386650191,-500.0,0.00013058,2]
[338209036,1726386650200,-500.0,0.00013058,2]
[338209037,1726386650210,-1659.93,0.00013058,2]
[338209038,1726386650219,-500.0,0.00013058,2]
[338209039,1726386650229,-636.82,0.00013058,2]
[338209040,1726386650238,-557.85,0.00013058,2]
[338209041,1726386650248,-1330.31,0.00013058,2]
[338209042,1726386650257,-1288.74,0.00013058,2]
[338209043,1726386650267,-500.0,0.00013058,2]
[338209044,1726386650277,-2152.07,0.00013058,2]
[338209045,1726386650286,-746.29,0.00013058,2]
[338209046,1726386650295,-500.0,0.00013058,2]
[338209047,1726386650304,-719.82,0.00013058,2]
[338209048,1726386650314,-500.0,0.00013058,2]
[338209049,1726386650324,-500.0,0.00013058,2]
[338209050,1726386650333,-38355.61,0.00013058,2]
[338209051,1726386650343,-1048.89,0.00013058,2]
[338209052,1726386650353,-3992.45,0.00013058,2]
[338209053,1726386650363,-500.0,0.00013058,2]
[338209054,1726386650373,-777.89,0.00013058,2]
[338209055,1726386650382,-1857.01,0.00013058,2]
[338209056,1726386650392,-500.0,0.00013058,2]
[338209057,1726386650402,-721.79,0.00013058,2]
[338209058,1726386650412,-500.0,0.00013058,2]
[338209059,1726386650421,-1741.68,0.00013058,2]
[338209060,1726386650431,-1450.58,0.00013058,2]
[338209061,1726386650440,-1817.29,0.00013058,2]
[338209062,1726386650450,-529.93,0.00013058,2]
[338209063,1726386650460,-1382.77,0.00013058,2]
[338209064,1726386650470,-500.0,0.00013058,2]
[338209065,1726386650480,-522.77,0.00013058,2]
[338209066,1726386650489,-2904.12,0.00013058,2]
[338209067,1726386650499,-500.0,0.00013058,2]
[338209068,1726386650509,-772.62,0.00013058,2]
[338209069,1726386650518,-500.0,0.00013058,2]
[338209070,1726386650528,-872.52,0.00013058,2]
[338209071,1726386650537,-1830.5,0.00013058,2]
[338209072,1726386650546,-655.06,0.00013058,2]
[338209073,1726386650556,-744.46,0.00013058,2]
[338209074,1726386650565,-694.99,0.00013058,2]
[338209075,1726386650577,-1096.99,0.00013058,2]
[338209076,1726386650587,-760.02,0.00013058,2]
[338209077,1726386650596,-500.0,0.00013058,2]
[338209078,1726386650605,-651.42,0.00013058,2]
[338209079,1726386650614,-906.05,0.00013058,2]
[338209080,1726386650625,-1788.79,0.00013058,2]
[338209081,1726386650635,-500.0,0.00013058,2]
[338209082,1726386650644,-500.0,0.00013058,2]
[338209083,1726386650655,-519.58,0.00013058,2]
[338209084,1726386650664,-500.0,0.00013058,2]
[338209085,1726386650674,-668.39,0.00013058,2]
[338209086,1726386650683,-1669.84,0.00013058,2]
[338209087,1726386650693,-500.0,0.00013058,2]
[338209088,1726386650703,-500.0,0.00013058,2]
[338209089,1726386650713,-991.26,0.00013058,2]
[338209090,1726386650723,-825.92,0.00013058,2]
[338209091,1726386650733,-2051.03,0.00013058,2]
[338209092,1726386650742,-805.04,0.00013058,2]
[338209093,1726386650752,-2617.08,0.00013058,2]
[338209094,1726386650762,-4635.5,0.00013058,2]
[338209095,1726386650772,-500.0,0.00013058,2]
[338209096,1726386650781,-1635.85,0.00013058,2]
[338209097,1726386650790,-1880.08,0.00013058,2]
[338209098,1726386650801,-1646.13,0.00013058,2]
[338209099,1726386650811,-500.0,0.00013058,2]
[338209100,1726386650820,-574.03,0.00013058,2]
[338209101,1726386650830,-535.64,0.00013058,2]
[338209102,1726386650839,-759.97,0.00013058,2]
[338209103,1726386650848,-500.0,0.00013058,2]
[338209104,1726386650858,-500.0,0.00013058,2]
[338209105,1726386650867,-1910.72,0.00013058,2]
[338209106,1726386650877,-500.0,0.00013058,2]
[338209107,1726386650886,-830.47,0.00013058,2]
[338209108,1726386650895,-500.0,0.00013058,2]
[338209109,1726386650906,-845.48,0.00013058,2]
[338209110,1726386650915,-540.36,0.00013058,2]
[338209111,1726386650925,-790.72,0.00013058,2]
[338209112,1726386650935,-500.0,0.00013058,2]
[338209113,1726386650945,-500.0,0.00013058,2]
[338209114,1726386650954,-615.12,0.00013058,2]
[338209115,1726386650964,-1339.68,0.00013058,2]
[338209116,1726386650974,-732.76,0.00013058,2]
[338209117,1726386650984,-500.0,0.00013058,2]
[338209118,1726386650994,-2517.19,0.00013058,2]
[338209119,1726386651003,-500.0,0.00013058,2]
[338209120,1726386651013,-1116.19,0.00013058,2]
[338209121,1726386651023,-1753.92,0.00013058,2]
[338209122,1726386651032,-362.10131505,0.00013058,2]
[338209123,1726386651042,-3262.83,0.00013058,2]
[338209124,1726386651052,-500.0,0.00013058,2]
[338209125,1726386651062,-2139.07,0.00013058,2]
[338209126,1726386651071,-500.0,0.00013059,2]
[338209127,1726386651081,-500.0,0.00013059,2]
[338209128,1726386651091,-500.0,0.00013059,2]
[338209129,1726386651100,-500.0,0.00013059,2]
[338209130,1726386651110,-500.0,0.00013059,2]
[338209131,1726386651119,-500.0,0.00013059,2]
[338209132,1726386651129,-500.0,0.00013059,2]
[338209133,1726386651138,-428.26317472,0.00013059,2]
[338209134,1726386651148,-402.49750593,0.00013059,2]
[338209135,1726386651158,-500.0,0.00013059,2]
[338209136,1726386651167,-500.0,0.00013059,2]
[338209137,1726386651176,-270.25526434,0.00013059,2]
[338209138,1726386651186,-493.75319089,0.00013059,2]
[338209139,1726386651197,-986.14,0.00013059,2]
[338209140,1726386651206,-500.0,0.00013059,2]
[338209141,1726386651216,-1104.91,0.00013059,2]
[338209142,1726386651227,-603.64,0.00013059,2]
[338209143,1726386651237,-1291.31,0.00013059,2]
[338209144,1726386651247,-1489.25,0.00013059,2]
[338209145,1726386651256,-1214.79,0.00013059,2]
[338209146,1726386651266,-644.7,0.00013059,2]
[338209147,1726386651275,-360.49251256,0.00013059,2]
[338209148,1726386651285,-734.64,0.00013059,2]
[338209149,1726386651295,-604.37,0.00013059,2]
[338209150,1726386651305,-1322.72,0.00013059,2]
[338209151,1726386651315,-500.0,0.00013059,2]
[338209152,1726386651324,-706.96,0.00013059,2]
[338209153,1726386651335,-819.4,0.00013059,2]
[338209154,1726386651344,-1793.07,0.00013059,2]
[338209155,1726386651353,-2382.64,0.00013059,2]
[338209156,1726386651364,-500.0,0.00013059,2]
[338209157,1726386651374,-559.68,0.00013059,2]
[338209158,1726386651384,-2812.38,0.00013059,2]
[338209159,1726386651394,-1215.38,0.00013059,2]
[338209160,1726386651403,-886.59,0.00013059,2]
[338209161,1726386651490,-1390.11,0.00013059,2]
[338209162,1726386651500,-377.94161641,0.00013059,2]
[338209163,1726386651509,-1865.48,0.00013059,2]
[338209164,1726386651518,-1240.08,0.00013059,2]
[338209165,1726386651528,-1091.54,0.00013059,2]
[338209166,1726386651538,-986.87,0.00013059,2]
[338209167,1726386651547,-618.57,0.00013059,2]
[338209168,1726386651556,-532.18,0.00013059,2]
[338209169,1726386651567,-2204.89,0.00013059,2]
[338209170,1726386651578,-500.0,0.00013059,2]
[338209171,1726386651587,-1196.34,0.00013059,2]
[338209172,1726386651596,-1877.34,0.00013059,2]
[338209173,1726386651605,-1544.19,0.00013059,2]
[338209174,1726386651614,-1642.31,0.00013059,2]
[338209175,1726386651623,-500.0,0.00013059,2]
[338209176,1726386651632,-2122.82,0.00013059,2]